bitfinex/quotes_BTCUSD_20250718
["timestamp","ask_amount","ask_price","bid_price","bid_amount"]
[1752840796984,0.29920267,119330.0,119320.0,0.01554085]
[1752840798379,0.41336267,119330.0,119320.0,0.01554085]
[1752840801759,0.42986267,119330.0,119320.0,0.01554085]
[1752840803623,0.94707837,119330.0,119320.0,0.01554085]
[1752840803857,0.42986267,119330.0,119320.0,0.01554085]
[1752840804072,0.41336267,119330.0,119320.0,0.53275655]
[1752840804463,0.41336267,119330.0,119320.0,0.01554085]
[1752840804679,0.49912229,119330.0,119320.0,0.01554085]
[1752840805382,1.01633799,119330.0,119320.0,0.01554085]
[1752840805834,0.49912229,119330.0,119320.0,0.01554085]
[1752840809194,0.36336267,119330.0,119320.0,0.01554085]
[1752840809406,0.36340267,119330.0,119320.0,0.01554085]
[1752840810418,0.36340267,119330.0,119320.0,0.02073085]
[1752840810640,0.36336267,119330.0,119320.0,0.71394386]
[1752840810840,0.36336267,119330.0,119320.0,0.74105386]
[1752840811045,0.01675975,119330.0,119320.0,0.77457574]
[1752840811404,0.16359894,119330.0,119320.0,0.77457602]
[1752840811647,0.16359894,119330.0,119320.0,0.77457553]
[1752840812485,0.33958143,119330.0,119320.0,0.77457553]
[1752840812680,0.33958143,119330.0,119320.0,0.25735983]
[1752840812874,0.33958206,119330.0,119320.0,0.7661952]
[1752840815083,0.03351894,119330.0,119320.0,0.77457553]
[1752840815302,0.16355894,119330.0,119320.0,0.77457553]
[1752840815504,0.17193899,119330.0,119320.0,0.77457553]
[1752840815716,0.16355894,119330.0,119320.0,0.77457553]
[1752840815917,0.15517896,119330.0,119320.0,0.77457553]
[1752840816099,0.17193885,119330.0,119320.0,0.77976553]
[1752840816639,0.33954129,119330.0,119320.0,0.7713852]
[1752840816819,0.33954192,119330.0,119320.0,0.7713852]
[1752840817023,0.16355936,119330.0,119320.0,0.77976553]
[1752840817356,0.20397255,119340.0,119330.0,0.01675989]
[1752840817566,0.34227133,119340.0,119330.0,0.76188851]
[1752840817807,0.33389255,119340.0,119330.0,1.10188851]
[1752840818242,0.20397255,119340.0,119330.0,1.61910421]
[1752840818461,0.33405255,119340.0,119330.0,1.61910421]
[1752840818661,0.33505255,119340.0,119330.0,1.61910421]
[1752840819522,0.33405255,119340.0,119330.0,1.62010421]
[1752840819931,0.33405255,119340.0,119330.0,1.61910421]
[1752840820559,0.13289255,119340.0,119330.0,1.61910421]
[1752840820776,0.13289255,119340.0,119330.0,1.62010421]
[1752840820984,0.13289255,119340.0,119330.0,0.58567281]
[1752840821194,0.13289255,119340.0,119330.0,1.04510266]
[1752840822754,0.13289255,119340.0,119330.0,1.04710266]
[1752840826100,0.13289255,119340.0,119330.0,1.13261294]
[1752840835258,0.00281255,119340.0,119330.0,1.13261294]
[1752840836069,0.00281255,119340.0,119330.0,1.26225294]
[1752840837367,1e-08,119340.0,119330.0,1.26225294]
[1752840837564,0.1296,119360.0,119350.0,0.5877063]
[1752840837778,0.13284,119370.0,119360.0,0.23783436]
[1752840837983,0.13292353,119370.0,119360.0,0.70226421]
[1752840838330,0.0200771,119370.0,119360.0,0.67166421]
[1752840838535,0.15801406,119370.0,119360.0,0.67166421]
[1752840838748,0.16639123,119370.0,119360.0,0.67166421]
[1752840838952,0.13293353,119370.0,119360.0,0.67166421]
[1752840839359,0.13288353,119370.0,119360.0,0.67166421]
[1752840839649,0.13288353,119370.0,119360.0,0.70226421]
[1752840841341,0.13288353,119370.0,119360.0,0.24283436]
[1752840841549,0.13288353,119370.0,119360.0,0.70226421]
[1752840843659,0.13288353,119370.0,119360.0,0.67166421]
[1752840843870,0.13293353,119370.0,119360.0,0.66666421]
[1752840844085,0.14131028,119370.0,119360.0,0.66960421]
[1752840844291,0.13293353,119370.0,119360.0,0.67166421]
[1752840844539,0.13288353,119370.0,119360.0,0.67166421]
[1752840845190,0.1496371,119370.0,119360.0,0.67166421]
[1752840845591,0.14963703,119370.0,119360.0,0.67166421]
[1752840846189,0.14126021,119370.0,119360.0,0.67166421]
[1752840846652,0.13288353,119370.0,119360.0,0.67166421]
[1752840846866,0.14126021,119370.0,119360.0,0.67166421]
[1752840847347,0.14963696,119370.0,119360.0,0.21223436]
[1752840847560,0.14963696,119370.0,119360.0,0.67166421]
[1752840848194,0.14963696,119370.0,119360.0,0.21223436]
[1752840848409,0.16639081,119370.0,119360.0,0.67166421]
[1752840848825,0.15801385,119370.0,119360.0,0.67166421]
[1752840849041,0.14963696,119370.0,119360.0,0.67166421]
[1752840849255,0.13288353,119370.0,119360.0,0.67166421]
[1752840849697,0.14126028,119370.0,119360.0,0.67166421]
[1752840850221,0.13288353,119370.0,119360.0,0.67166421]
[1752840850670,0.13288353,119370.0,119360.0,0.21223436]
[1752840850901,0.14126021,119370.0,119360.0,0.21223436]
[1752840851117,0.14126021,119370.0,119360.0,0.67166421]
[1752840851571,0.1496371,119370.0,119360.0,0.21223436]
[1752840851790,0.1496371,119370.0,119360.0,0.67166421]
[1752840852014,0.14126021,119370.0,119360.0,0.67166421]
[1752840852224,0.14963703,119370.0,119360.0,0.67166421]
[1752840852917,0.15801399,119370.0,119360.0,0.21223436]
[1752840853168,0.15801392,119370.0,119360.0,0.67166421]
[1752840853424,0.19001805,119370.0,119360.0,0.66666421]
[1752840853893,0.17326392,119370.0,119360.0,0.66521785]
[1752840854155,0.18164095,119370.0,119360.0,0.66521785]
[1752840854395,0.17326392,119370.0,119360.0,0.66521785]
[1752840854955,0.17326392,119370.0,119360.0,0.208728]
[1752840855152,0.19001812,119370.0,119360.0,0.66815785]
[1752840855491,0.18164095,119370.0,119360.0,0.66815785]
[1752840855705,0.17326392,119370.0,119360.0,0.66815785]
[1752840855892,0.18164088,119370.0,119360.0,0.66815785]
[1752840856522,0.15806392,119370.0,119360.0,0.66815785]
[1752840856754,0.14131021,119370.0,119360.0,0.67021785]
[1752840857185,0.14968703,119370.0,119360.0,0.67021785]
[1752840857398,0.14131021,119370.0,119360.0,0.67021785]
[1752840857607,0.14126021,119370.0,119360.0,0.67021785]
[1752840858024,0.14963703,119370.0,119360.0,0.67021785]
[1752840858245,0.15801399,119370.0,119360.0,0.67021785]
[1752840858460,0.14963703,119370.0,119360.0,0.67021785]
[1752840858672,0.15801399,119370.0,119360.0,0.67021785]
[1752840860373,0.16639109,119370.0,119360.0,0.67021785]
[1752840860582,0.15801399,119370.0,119360.0,0.67021785]
[1752840860767,0.16639109,119370.0,119360.0,0.67021785]
[1752840861618,0.17476826,119370.0,119360.0,0.67021785]
[1752840861820,0.17476882,119370.0,119360.0,0.67021785]
[1752840862032,0.16639158,119370.0,119360.0,0.67021785]
[1752840862503,0.33393828,119370.0,119360.0,0.66328669]
[1752840862696,0.32561132,119370.0,119360.0,0.66328676]
[1752840862908,0.32561132,119370.0,119360.0,0.67166449]
[1752840864214,0.31723422,119370.0,119360.0,0.65490896]
[1752840864438,0.36132706,119370.0,119360.0,0.01954085]
[1752840864669,0.35294982,119370.0,119360.0,0.4769107]
[1752840864895,0.30047981,119370.0,119360.0,0.65284896]
[1752840865349,0.30047981,119370.0,119360.0,0.01748085]
[1752840865581,0.33127981,119370.0,119360.0,0.01454085]
[1752840866761,0.41679009,119370.0,119360.0,0.01454085]
[1752840866999,0.50254971,119370.0,119360.0,0.01454085]
[1752840867221,0.37298971,119370.0,119360.0,0.01454085]
[1752840867441,0.50214971,119370.0,119360.0,0.01454085]
[1752840867878,0.41639009,119370.0,119360.0,0.01454085]
[1752840870108,0.41635009,119370.0,119360.0,0.01454085]
[1752840878110,0.40075009,119370.0,119360.0,0.01454085]
[1752840879043,0.38555009,119370.0,119360.0,0.01454085]
[1752840882141,0.38555009,119370.0,119360.0,0.01777085]
[1752840883076,0.38555009,119370.0,119360.0,0.18533117]
[1752840883504,0.38555009,119370.0,119360.0,0.19370918]
[1752840884273,0.38527009,119370.0,119360.0,0.20208698]
[1752840884497,0.38527009,119370.0,119360.0,0.20418712]
[1752840884883,0.38527009,119370.0,119360.0,0.66361697]
[1752840885034,0.38527009,119370.0,119360.0,0.72095693]
[1752840885501,0.38522009,119370.0,119360.0,0.72095693]
[1752840886108,0.38522009,119370.0,119360.0,0.72933473]
[1752840886486,0.14891738,119370.0,119360.0,0.77748998]
[1752840886697,0.14054035,119370.0,119360.0,0.77748998]
[1752840886877,0.14891738,119370.0,119360.0,0.77748998]
[1752840887079,0.14054035,119370.0,119360.0,0.26072017]
[1752840887234,0.14891731,119370.0,119360.0,0.77748998]
[1752840887443,0.15729441,119370.0,119360.0,0.77748998]
[1752840887853,0.14891731,119370.0,119360.0,0.77748998]
[1752840888640,0.13216353,119370.0,119360.0,0.77748998]
[1752840888848,0.14054028,119370.0,119360.0,0.77748998]
[1752840889056,0.14054028,119370.0,119360.0,0.71996577]
[1752840889283,0.14891717,119370.0,119360.0,0.71996577]
[1752840889491,0.15729427,119370.0,119360.0,0.71996577]
[1752840889703,0.14891717,119370.0,119360.0,0.71996577]
[1752840890340,0.16567144,119370.0,119360.0,0.71996577]
[1752840890549,0.14891717,119370.0,119360.0,0.71996577]
[1752840890760,0.1572942,119370.0,119360.0,0.71996577]
[1752840890966,0.16567144,119370.0,119360.0,0.71996577]
[1752840891143,0.17404861,119370.0,119360.0,0.71996577]
[1752840891375,0.1572942,119370.0,119360.0,0.71996577]
[1752840891967,0.16567137,119370.0,119360.0,0.71996577]
[1752840892179,0.1572942,119370.0,119360.0,0.71996577]
[1752840892785,0.16567137,119370.0,119360.0,0.71996577]
[1752840893201,0.1572942,119370.0,119360.0,0.71996577]
[1752840893631,0.14891717,119370.0,119360.0,0.71996577]
[1752840893980,0.1572942,119370.0,119360.0,0.71996577]
[1752840894421,0.16567137,119370.0,119360.0,0.74470597]
[1752840894639,0.33321821,119370.0,119360.0,0.27708285]
[1752840894847,0.33321821,119370.0,119360.0,0.73632845]
[1752840894848,0.15729462,119370.0,119360.0,0.73632845]
[1752840895056,0.3248409,119370.0,119360.0,0.74470611]
[1752840895703,0.15729455,119370.0,119360.0,0.74470562]
[1752840895916,0.15729406,119370.0,119360.0,0.74470562]
[1752840896601,0.14891703,119370.0,119360.0,0.75302119]
[1752840896842,0.15729399,119370.0,119360.0,0.75302119]
[1752840897761,0.16567116,119370.0,119360.0,0.75302119]
[1752840898174,0.16567116,119370.0,119360.0,0.74464367]
[1752840898388,0.16567116,119370.0,119360.0,0.75302119]
[1752840898611,0.34159475,119370.0,119360.0,0.74464367]
[1752840898847,0.33321807,119370.0,119360.0,0.74464367]
[1752840900423,0.31651429,119370.0,119360.0,0.05292662]
[1752840900534,0.45210523,119370.0,119360.0,0.03305577]
[1752840900768,0.43282457,119370.0,119360.0,0.04759662]
[1752840900987,0.43282457,119370.0,119360.0,0.01454085]
[1752840902918,0.89207017,119370.0,119360.0,0.01454085]
[1752840903339,0.43282457,119370.0,119360.0,0.01454085]
[1752840903548,0.38974419,119370.0,119360.0,0.01454085]
[1752840903756,0.51894419,119370.0,119360.0,0.01454085]
[1752840903971,0.43318457,119370.0,119360.0,0.03918334]
[1752840904396,0.43318457,119370.0,119360.0,0.01454085]
[1752840906376,0.89243017,119370.0,119360.0,0.01454085]
[1752840907101,0.20713819,119360.0,119350.0,0.02281801]
[1752840907368,0.29269847,119360.0,119350.0,0.01454085]
[1752840907596,0.50753809,119360.0,119350.0,0.01454085]
[1752840907820,0.88102407,119360.0,119350.0,0.01454085]
[1752840908072,0.87851072,119360.0,119350.0,0.01454085]
[1752840908727,0.87851072,119360.0,119350.0,0.01654085]
[1752840909136,0.87851072,119360.0,119350.0,0.01554085]
[1752840909359,0.50502474,119360.0,119350.0,0.01454085]
[1752840910775,0.98942334,119360.0,119350.0,0.01454085]
[1752840911246,0.20645293,119350.0,119340.0,0.03972872]
[1752840911465,0.29201321,119350.0,119340.0,0.01454085]
[1752840914311,0.29201321,119350.0,119340.0,0.01328687]
[1752840915157,0.34993446,119350.0,119340.0,0.01328687]
[1752840916315,0.29201321,119350.0,119340.0,0.01328687]
[1752840917393,0.42169321,119350.0,119340.0,0.01328687]
[1752840919674,0.88093881,119350.0,119340.0,0.01328687]
[1752840919894,0.1826884,119340.0,119330.0,0.01454085]
[1752840920117,0.28354868,119340.0,119330.0,0.01454085]
[1752840920325,0.3693083,119340.0,119330.0,0.01454085]
[1752840923127,0.8285539,119340.0,119330.0,0.01454085]
[1752840923381,0.17598242,119330.0,119320.0,0.04243951]
[1752840923624,0.3911427,119330.0,119320.0,0.04243951]
[1752840923842,0.3911427,119330.0,119320.0,0.04751951]
[1752840924255,0.3910927,119330.0,119320.0,0.7056816]
[1752840924470,0.3910927,119330.0,119320.0,0.71406242]
[1752840924678,0.3910927,119330.0,119320.0,0.54744593]
[1752840924857,0.3910927,119330.0,119320.0,0.53906511]
[1752840925074,0.3910927,119330.0,119320.0,0.7076816]
[1752840925276,0.3910927,119330.0,119320.0,0.71606242]
[1752840925432,0.3911427,119330.0,119320.0,0.68278242]
[1752840925636,0.3911427,119330.0,119320.0,0.50678511]
[1752840926183,0.3911427,119330.0,119320.0,0.04951951]
[1752840926603,0.47690232,119330.0,119320.0,0.04951951]
[1752840927249,0.47690232,119330.0,119320.0,0.04753951]
[1752840928385,0.47690232,119330.0,119320.0,0.04951951]
[1752840928548,0.47690232,119330.0,119320.0,0.217136]
[1752840928761,0.47690232,119330.0,119320.0,0.248236]
[1752840928987,0.47690232,119330.0,119320.0,0.08061951]
[1752840929833,0.47685232,119330.0,119320.0,0.08061951]
[1752840930046,0.3910927,119330.0,119320.0,0.08061951]
[1752840930250,0.3910927,119330.0,119320.0,0.25661668]
[1752840930463,0.10227003,119330.0,119320.0,0.72424275]
[1752840930662,0.23191003,119330.0,119320.0,0.73262308]
[1752840932377,0.24028959,119330.0,119320.0,0.73262308]
[1752840932592,0.2967,119340.0,119330.0,0.19274196]
[1752840932811,0.52860826,119340.0,119330.0,0.68506756]
[1752840933032,0.70457593,119340.0,119330.0,0.68816756]
[1752840933250,0.53698753,119340.0,119330.0,0.68816756]
[1752840933457,0.71295535,119340.0,119330.0,0.68816756]
[1752840933875,0.52860826,119340.0,119330.0,0.68816756]
[1752840934095,0.53698746,119340.0,119330.0,0.68816756]
[1752840934871,0.53698746,119340.0,119330.0,0.77816756]
[1752840935080,0.54536673,119340.0,119330.0,0.77816756]
[1752840935489,0.53698746,119340.0,119330.0,0.77816756]
[1752840935710,0.2967,119340.0,119330.0,0.79270841]
[1752840935936,0.2967,119340.0,119330.0,1.13270841]
[1752840935937,0.12956,119340.0,119330.0,1.13270841]
[1752840936588,0.12956,119340.0,119330.0,0.67346281]
[1752840936797,0.12956,119340.0,119330.0,1.13270841]
[1752840938606,0.20949766,119360.0,119330.0,1.10756889]
[1752840938835,0.31184672,119360.0,119350.0,0.68475525]
[1752840939053,0.42461126,119360.0,119350.0,0.68475525]
[1752840939274,0.44136665,119360.0,119350.0,0.68983525]
[1752840939458,0.44974452,119360.0,119350.0,0.23058965]
[1752840939705,0.44974452,119360.0,119350.0,0.68983525]
[1752840941083,0.33072353,119360.0,119350.0,0.7043761]
[1752840941315,0.33910091,119360.0,119350.0,0.7043761]
[1752840941548,0.33914091,119360.0,119350.0,0.7043761]
[1752840941784,0.34751843,119360.0,119350.0,0.7043761]
[1752840941995,0.35589623,119360.0,119350.0,0.7043761]
[1752840942447,0.34751843,119360.0,119350.0,0.7043761]
[1752840942669,0.35589616,119360.0,119350.0,0.7043761]
[1752840942893,0.36427389,119360.0,119350.0,0.7043761]
[1752840943316,0.35789609,119360.0,119350.0,0.7043761]
[1752840943734,0.35589609,119360.0,119350.0,0.7043761]
[1752840946509,0.34751843,119360.0,119350.0,0.7043761]
[1752840946720,0.33076353,119360.0,119350.0,1.0443761]
[1752840948070,0.33914098,119360.0,119350.0,1.0443761]
[1752840948394,0.34751857,119360.0,119350.0,1.0443761]
[1752840948596,0.34751857,119360.0,119350.0,0.5851305]
[1752840948803,0.34751857,119360.0,119350.0,1.0443761]
[1752840949122,0.3558963,119360.0,119350.0,1.0443761]
[1752840949386,0.34751857,119360.0,119350.0,1.0115761]
[1752840949551,0.34751857,119360.0,119350.0,0.5523305]
[1752840949759,0.35589623,119360.0,119350.0,0.5831305]
[1752840949965,0.34751857,119360.0,119350.0,0.5831305]
[1752840950390,0.34751857,119360.0,119350.0,1.0423761]
[1752840952694,0.3558963,119360.0,119350.0,1.0423761]
[1752840953096,0.34751857,119360.0,119350.0,1.06812276]
[1752840953511,0.34751857,119360.0,119350.0,0.60887716]
[1752840953780,0.34751857,119360.0,119350.0,1.06812276]
[1752840954205,0.3556563,119360.0,119350.0,1.06812276]
[1752840954928,0.34727857,119360.0,119350.0,1.06812276]
[1752840955352,0.3556563,119360.0,119350.0,1.06812276]
[1752840955971,0.36403417,119360.0,119350.0,1.06812276]
[1752840956215,0.3640341,119360.0,119350.0,0.60887716]
[1752840956409,0.3556563,119360.0,119350.0,1.06812276]
[1752840956637,0.35565623,119360.0,119350.0,1.06812276]
[1752840957058,0.36403396,119360.0,119350.0,1.06812276]
[1752840957275,0.37241183,119360.0,119350.0,1.06812276]
[1752840957537,0.56920952,119360.0,119350.0,0.38338751]
[1752840959781,0.51488973,119360.0,119350.0,0.38338751]
[1752840959987,0.61580001,119360.0,119350.0,0.38028751]
[1752840960234,0.63100001,119360.0,119350.0,0.38028751]
[1752840960457,0.50168001,119360.0,119350.0,0.38028751]
[1752840960686,0.71663963,119360.0,119350.0,0.38028751]
[1752840961460,0.63092001,119360.0,119350.0,0.38028751]
[1752840961697,0.61568001,119360.0,119350.0,0.38028751]
[1752840962238,0.63118001,119360.0,119350.0,0.38028751]
[1752840962645,0.63118001,119360.0,119350.0,0.04028751]
[1752840964114,0.61568001,119360.0,119350.0,0.04028751]
[1752840964317,0.61568001,119360.0,119350.0,0.01454085]
[1752840965715,0.60028001,119360.0,119350.0,0.01770085]
[1752840967276,0.60032001,119360.0,119350.0,0.20203242]
[1752840967493,0.60032001,119360.0,119350.0,0.21245085]
[1752840967942,0.60032001,119360.0,119350.0,0.23772009]
[1752840968078,0.60032001,119360.0,119350.0,0.24609845]
[1752840968431,0.60032001,119360.0,119350.0,0.23772009]
[1752840968667,0.43275934,119360.0,119350.0,0.24609831]
[1752840969515,0.43270934,119360.0,119350.0,0.24609831]
[1752840970068,0.44108679,119360.0,119350.0,0.24609831]
[1752840970290,0.44108672,119360.0,119350.0,0.24609831]
[1752840971314,0.43270885,119360.0,119350.0,0.73774391]
[1752840971759,0.33882091,119360.0,119350.0,0.73774391]
[1752840971951,0.33044353,119360.0,119350.0,0.73774391]
[1752840972152,0.33044353,119360.0,119350.0,0.27849831]
[1752840972356,0.33044353,119360.0,119350.0,0.73774391]
[1752840972564,0.33044353,119360.0,119350.0,0.27849831]
[1752840972793,0.34719864,119360.0,119350.0,0.73774391]
[1752840973091,0.34719864,119360.0,119350.0,0.79534023]
[1752840973301,0.35557651,119360.0,119350.0,0.79534023]
[1752840973508,0.34719864,119360.0,119350.0,0.79534023]
[1752840973722,0.34719857,119360.0,119350.0,0.79534023]
[1752840974144,0.14607857,119360.0,119350.0,0.79534023]
[1752840974478,0.1544563,119360.0,119350.0,0.79534023]
[1752840974892,0.16283417,119360.0,119350.0,0.79534023]
[1752840975100,0.1544563,119360.0,119350.0,0.7379287]
[1752840975331,0.15445623,119360.0,119350.0,0.7379287]
[1752840975542,0.14607857,119360.0,119350.0,0.7379287]
[1752840976175,0.13770098,119360.0,119350.0,0.7379287]
[1752840976971,0.14607857,119360.0,119350.0,0.7379287]
[1752840977211,0.12932353,119360.0,119350.0,0.7379287]
[1752840977647,0.12948353,119360.0,119350.0,0.7379287]
[1752840977846,0.12948353,119360.0,119350.0,0.27849831]
[1752840978076,0.12948353,119360.0,119350.0,0.7379287]
[1752840978270,0.13786091,119360.0,119350.0,0.7379287]
[1752840978700,0.12948353,119360.0,119350.0,0.7379287]
[1752840978917,0.13786091,119360.0,119350.0,0.7379287]
[1752840979729,0.12948353,119360.0,119350.0,1.0779287]
[1752840984680,0.12948353,119360.0,119350.0,1.0789287]
[1752840987961,0.13786098,119360.0,119350.0,1.0789287]
[1752840988401,0.12948353,119360.0,119350.0,1.0789287]
[1752840988604,0.13786091,119360.0,119350.0,1.0789287]
[1752840988988,0.12948353,119360.0,119350.0,1.0789287]
[1752840990843,0.13786098,119360.0,119350.0,1.0789287]
[1752840991034,0.14623857,119360.0,119350.0,1.0789287]
[1752840991995,0.13786098,119360.0,119350.0,1.0789287]
[1752840992337,0.14623857,119360.0,119350.0,1.0789287]
[1752840992662,0.12948353,119360.0,119350.0,1.0789287]
[1752840992929,0.13786098,119360.0,119350.0,1.0789287]
[1752840993391,0.1462385,119360.0,119350.0,1.0789287]
[1752840994634,0.15461616,119360.0,119350.0,1.0789287]
[1752840994864,0.16299403,119360.0,119350.0,1.0465287]
[1752840995076,0.15461616,119360.0,119350.0,1.0465287]
[1752840995290,0.16299389,119360.0,119350.0,1.0465287]
[1752840995510,0.1462385,119360.0,119350.0,1.0465287]
[1752840995730,0.1462385,119360.0,119350.0,1.0771287]
[1752840995954,0.16299382,119360.0,119350.0,1.0771287]
[1752840996159,0.16299375,119360.0,119350.0,1.0771287]
[1752840996566,0.15461609,119360.0,119350.0,1.0771287]
[1752840996784,0.15461609,119360.0,119350.0,1.1671287]
[1752840997268,0.1462385,119360.0,119350.0,1.1671287]
[1752840997494,0.12948353,119360.0,119350.0,1.1671287]
[1752840997923,0.13786098,119360.0,119350.0,1.1671287]
[1752840998141,0.1462385,119360.0,119350.0,1.1671287]
[1752840998936,0.1462385,119360.0,119350.0,0.70769831]
[1752840999138,0.13786098,119360.0,119350.0,1.1671287]
[1752841000355,0.13786091,119360.0,119350.0,1.1671287]
[1752841001182,0.14623843,119360.0,119350.0,1.1671287]
[1752841001318,0.14623836,119360.0,119350.0,1.1671287]
[1752841001517,0.15461588,119360.0,119350.0,1.1671287]
[1752841001791,0.16299354,119360.0,119350.0,0.70769831]
[1752841002081,0.16299354,119360.0,119350.0,1.1671287]
[1752841002303,0.15461588,119360.0,119350.0,1.1671287]
[1752841002521,0.16299354,119360.0,119350.0,1.1671287]
[1752841002742,0.17137141,119360.0,119350.0,1.1365287]
[1752841002967,0.03359347,119360.0,119350.0,1.1365287]
[1752841003205,0.16355347,119360.0,119350.0,1.1691287]
[1752841003419,0.1719312,119360.0,119350.0,1.1691287]
[1752841003648,0.16355382,119360.0,119350.0,1.1691287]
[1752841003856,0.17193169,119360.0,119350.0,1.1526287]
[1752841004063,0.17193169,119360.0,119350.0,1.1365287]
[1752841004693,0.44029774,119360.0,119350.0,0.47081009]
[1752841004909,0.43192001,119360.0,119350.0,0.63838445]
[1752841005111,0.49302847,119360.0,119350.0,0.63838445]
[1752841005944,0.49302847,119360.0,119350.0,0.64157445]
[1752841006164,0.49302847,119360.0,119350.0,0.64995316]
[1752841006369,0.41532001,119360.0,119350.0,0.65833166]
[1752841006997,0.39992001,119360.0,119350.0,0.65833166]
[1752841007569,0.39992001,119360.0,119350.0,0.47400009]
[1752841007793,0.43202001,119360.0,119350.0,0.47081009]
[1752841008619,0.43202001,119360.0,119350.0,0.47400009]
[1752841009066,0.43202001,119360.0,119350.0,0.64157445]
[1752841009262,0.43202001,119360.0,119350.0,0.64995316]
[1752841009935,0.42364214,119360.0,119350.0,0.4823788]
[1752841010350,0.40704214,119360.0,119350.0,0.47400009]
[1752841010568,0.42284214,119360.0,119350.0,0.47400009]
[1752841011422,0.40704214,119360.0,119350.0,0.47400009]
[1752841011636,0.40704214,119360.0,119350.0,0.64157445]
[1752841011967,0.46638504,119360.0,119350.0,0.47400009]
[1752841012372,0.46638504,119360.0,119350.0,0.47081009]
[1752841012625,0.48288504,119360.0,119350.0,0.47081009]
[1752841013034,0.46638504,119360.0,119350.0,0.47081009]
[1752841013629,0.46638504,119360.0,119350.0,0.64676316]
[1752841013891,0.45088504,119360.0,119350.0,0.64984316]
[1752841014235,0.45088504,119360.0,119350.0,0.4822688]
[1752841015323,0.45088504,119360.0,119350.0,0.47389009]
[1752841016437,0.45088504,119360.0,119350.0,0.64146445]
[1752841016653,0.45088504,119360.0,119350.0,0.64984316]
[1752841016871,0.39154214,119360.0,119350.0,0.66026173]
[1752841017108,0.22393133,119360.0,119350.0,1.16904877]
[1752841017313,0.16355389,119360.0,119350.0,1.14377953]
[1752841017522,0.15517623,119360.0,119350.0,1.14377953]
[1752841017935,0.17193169,119360.0,119350.0,1.14377953]
[1752841019241,0.16355382,119360.0,119350.0,1.14377953]
[1752841019464,0.16355382,119360.0,119350.0,1.16935546]
[1752841019687,0.17193169,119360.0,119350.0,1.16935546]
[1752841022118,0.13842091,119360.0,119350.0,1.16935546]
[1752841022354,0.1467985,119360.0,119350.0,1.16935546]
[1752841022974,0.15517623,119360.0,119350.0,1.16935546]
[1752841024818,0.1635541,119360.0,119350.0,1.16935546]
[1752841026002,0.33111498,119360.0,119350.0,0.70154685]
[1752841026205,0.32273739,119360.0,119350.0,1.15259881]
[1752841026528,0.32273739,119360.0,119350.0,1.16097731]
[1752841027140,0.32273739,119360.0,119350.0,1.16935574]
[1752841027491,0.32273739,119360.0,119350.0,1.1777341]
[1752841028046,0.3311154,119360.0,119350.0,1.1777341]
[1752841029026,0.3311154,119360.0,119350.0,1.23515378]
[1752841029257,0.32273767,119360.0,119350.0,0.70992535]
[1752841029499,0.32273767,119360.0,119350.0,1.22677542]
[1752841030754,0.32273767,119360.0,119350.0,1.21839699]
[1752841032353,0.32273767,119360.0,119350.0,1.22677542]
[1752841033694,0.13842119,119360.0,119350.0,1.23515364]
[1752841033907,0.16355431,119360.0,119350.0,1.23515364]
[1752841034250,0.16355431,119360.0,119350.0,0.71830357]
[1752841034462,0.16355431,119360.0,119350.0,1.23515364]
[1752841034937,0.15517644,119360.0,119350.0,1.23515364]
[1752841035254,0.14679864,119360.0,119350.0,1.23515364]
[1752841035462,0.13842098,119360.0,119350.0,1.23515364]
[1752841036106,0.13004353,119360.0,119350.0,1.23515364]
[1752841037865,0.13842098,119360.0,119350.0,1.23515364]
[1752841038292,0.13842091,119360.0,119350.0,1.23515364]
[1752841040049,0.13004353,119360.0,119350.0,1.23515364]
[1752841041683,0.13842091,119360.0,119350.0,1.23515364]
[1752841041901,0.13004353,119360.0,119350.0,1.23515364]
[1752841045444,0.13004353,119360.0,119350.0,0.71830357]
[1752841045569,0.13004353,119360.0,119350.0,1.23515364]
[1752841047184,0.13004353,119360.0,119350.0,0.71830357]
[1752841047353,0.13004353,119360.0,119350.0,1.23515364]
[1752841048829,0.13004353,119360.0,119350.0,0.71830357]
[1752841049021,0.1467985,119360.0,119350.0,1.23515364]
[1752841049239,0.15517616,119360.0,119350.0,1.23515364]
[1752841049512,0.1467985,119360.0,119350.0,1.23515364]
[1752841049968,0.86469339,119360.0,119350.0,0.46803464]
[1752841050189,0.97322601,119360.0,119350.0,0.11657593]
[1752841050649,0.97322601,119360.0,119350.0,0.091]
[1752841051708,0.97322601,119360.0,119350.0,0.09]
[1752841052122,0.21564673,119340.0,119330.0,0.04014347]
[1752841052338,0.8619468,119340.0,119330.0,0.04014347]
[1752841052515,0.90027015,119340.0,119330.0,0.02560262]
[1752841052778,0.8619468,119340.0,119330.0,0.04014347]
[1752841052992,0.21569673,119340.0,119330.0,0.01454085]
[1752841053218,0.34509673,119340.0,119330.0,0.02292097]
[1752841053397,0.34509673,119340.0,119330.0,0.19052341]
[1752841053638,0.34509673,119340.0,119330.0,0.19252341]
[1752841053839,0.39335685,119340.0,119330.0,0.19252341]
[1752841053996,0.39335685,119340.0,119330.0,0.20090346]
[1752841054386,0.38497779,119340.0,119330.0,0.20090346]
[1752841054595,0.38497779,119340.0,119330.0,0.19252341]
[1752841054790,0.37659852,119340.0,119330.0,0.01654085]
[1752841055224,0.37659852,119340.0,119330.0,0.01754085]
[1752841055538,0.37659852,119340.0,119330.0,0.18514329]
[1752841055745,0.37659852,119340.0,119330.0,0.19352334]
[1752841055956,0.37663852,119340.0,119330.0,0.19352334]
[1752841056172,0.37663852,119340.0,119330.0,0.21928458]
[1752841056587,0.37663852,119340.0,119330.0,0.21090453]
[1752841056926,0.37663852,119340.0,119330.0,0.04330209]
[1752841057143,0.3283784,119340.0,119330.0,0.04330209]
[1752841057339,0.3132784,119340.0,119330.0,0.04330209]
[1752841057524,0.3132784,119340.0,119330.0,0.04646209]
[1752841058028,0.3132784,119340.0,119330.0,0.04330209]
[1752841058903,0.3132784,119340.0,119330.0,0.13330209]
[1752841059278,0.36302492,119340.0,119330.0,0.13330209]
[1752841059478,0.36302492,119340.0,119330.0,0.30928465]
[1752841059700,0.36302492,119340.0,119330.0,0.3176647]
[1752841060112,0.3132784,119340.0,119330.0,0.3208247]
[1752841061062,0.3132784,119340.0,119330.0,0.3176647]
[1752841061241,0.3282784,119340.0,119330.0,0.30928465]
[1752841061441,0.3282784,119340.0,119330.0,0.3176647]
[1752841061659,0.3132784,119340.0,119330.0,0.32604468]
[1752841062419,0.4321752,119340.0,119330.0,0.13330209]
[1752841062657,0.4622752,119340.0,119330.0,0.13330209]
[1752841063282,0.4622752,119340.0,119330.0,0.13230209]
[1752841063888,0.4622752,119340.0,119330.0,0.13030209]
[1752841067564,0.4622752,119340.0,119330.0,0.10454085]
[1752841068840,0.4321752,119340.0,119330.0,0.10454085]
[1752841069350,0.4321752,119340.0,119330.0,0.10770085]
[1752841070122,0.4482752,119340.0,119330.0,0.10454085]
[1752841070666,0.4321752,119340.0,119330.0,0.10454085]
[1752841071539,0.4476752,119340.0,119330.0,0.10454085]
[1752841071906,0.4321752,119340.0,119330.0,0.10454085]
[1752841072631,0.4321752,119340.0,119330.0,0.10775085]
[1752841074153,0.38258868,119340.0,119330.0,0.10775085]
[1752841076817,0.38258868,119340.0,119330.0,0.62486074]